[Event "Live Chess"]
[Site "Chess.com"]
[Date "2023.09.16"]
[Round "-"]
[White "Du_Felix"]
[Black "RickBrasil"]
[Result "0-1"]
[WhiteElo "1901"]
[BlackElo "1884"]
[TimeControl "900+5"]
[EndTime "7:54:12 PDT"]
[Termination "RickBrasil venceu por xeque-mate"]

1. e4 {[%clk 0:15:00.4]} 1... c6 {[%clk 0:15:03.2]} 2. d3 {[%clk 0:15:00.1]}
2... d5 {[%clk 0:15:08.1]} 3. Nd2 {[%clk 0:15:04.5]} 3... dxe4 {[%clk
0:15:06.2]} 4. Nxe4 {[%clk 0:15:04.2]} 4... Nd7 {[%clk 0:15:06]} 5. Nf3 {[%clk
0:15:04]} 5... Ngf6 {[%clk 0:15:06.8]} 6. Bf4 {[%clk 0:14:53.1]} 6... Nxe4
{[%clk 0:15:05.6]} 7. dxe4 {[%clk 0:14:56.8]} 7... Qb6 {[%clk 0:14:57.3]} 8. Rb1
{[%clk 0:14:41.8]} 8... Qa5+ {[%clk 0:14:09.2]} 9. c3 {[%clk 0:13:51.1]} 9...
Qxa2 {[%clk 0:14:04.5]} 10. Be2 {[%clk 0:13:52.5]} 10... Qa5 {[%clk 0:13:41.1]}
11. O-O {[%clk 0:13:53.5]} 11... e5 {[%clk 0:13:44.9]} 12. Ra1 {[%clk
0:12:53.1]} 12... Qc7 {[%clk 0:13:48]} 13. Be3 {[%clk 0:12:28.5]} 13... Bc5
{[%clk 0:13:20]} 14. Qb3 {[%clk 0:11:50.3]} 14... Bxe3 {[%clk 0:13:18.2]} 15.
fxe3 {[%clk 0:11:54.2]} 15... Qb6 {[%clk 0:13:10.7]} 16. Qxb6 {[%clk 0:11:47.6]}
16... Nxb6 {[%clk 0:13:15.6]} 17. Nxe5 {[%clk 0:11:51.4]} 17... Be6 {[%clk
0:12:40.1]} 18. Bg4 {[%clk 0:11:03.3]} 18... Bxg4 {[%clk 0:12:39.5]} 19. Nxg4
{[%clk 0:11:06.9]} 19... Nd7 {[%clk 0:12:40]} 20. Rf2 {[%clk 0:10:41.7]} 20...
f6 {[%clk 0:12:32.1]} 21. h3 {[%clk 0:10:42.5]} 21... h5 {[%clk 0:12:33.4]} 22.
Nh2 {[%clk 0:10:46.2]} 22... Ne5 {[%clk 0:12:23.5]} 23. Nf3 {[%clk 0:10:38.2]}
23... Nxf3+ {[%clk 0:11:49]} 24. gxf3 {[%clk 0:10:40]} 24... a6 {[%clk
0:11:46.4]} 25. Rg2 {[%clk 0:09:03]} 25... Kf7 {[%clk 0:11:22]} 26. h4 {[%clk
0:08:53.5]} 26... Rad8 {[%clk 0:11:15]} 27. Kf1 {[%clk 0:08:47.2]} 27... Rd3
{[%clk 0:11:16.1]} 28. Ke2 {[%clk 0:08:50.1]} 28... Rhd8 {[%clk 0:11:19.5]} 29.
Ra5 {[%clk 0:08:45.9]} 29... Rd2+ {[%clk 0:10:48.9]} 30. Kf1 {[%clk 0:08:48.6]}
30... Rd1+ {[%clk 0:10:43.7]} 31. Kf2 {[%clk 0:08:51.7]} 31... g6 {[%clk
0:10:27.5]} 32. Ra2 {[%clk 0:07:56.1]} 32... Rh1 {[%clk 0:09:41.8]} 33. Kg3
{[%clk 0:07:57.2]} 33... Re1 {[%clk 0:09:34.1]} 34. Kf2 {[%clk 0:07:38.2]} 34...
Rd2+ {[%clk 0:09:02.3]} 35. Kg3 {[%clk 0:07:14.4]} 35... Rxg2+ {[%clk
0:09:01.4]} 36. Kxg2 {[%clk 0:07:18.4]} 36... Rxe3 {[%clk 0:09:05.4]} 37. Kf2
{[%clk 0:07:17.6]} 37... Rd3 {[%clk 0:09:09.6]} 38. Ke2 {[%clk 0:07:21.4]} 38...
Rd7 {[%clk 0:09:06.4]} 39. Ra3 {[%clk 0:07:20.7]} 39... Ke6 {[%clk 0:09:09.4]}
40. Rb3 {[%clk 0:07:24.3]} 40... Ke5 {[%clk 0:08:46.3]} 41. Rb4 {[%clk
0:07:18.8]} 41... Kf4 {[%clk 0:08:26.6]} 42. Rd4 {[%clk 0:07:13.1]} 42... Rf7
{[%clk 0:07:26.8]} 43. c4 {[%clk 0:06:53.4]} 43... Kg3 {[%clk 0:06:53.9]} 44. c5
{[%clk 0:06:56.3]} 44... Kxh4 {[%clk 0:06:56.4]} 45. e5+ {[%clk 0:06:59]} 45...
Kg5 {[%clk 0:06:56.5]} 46. e6 {[%clk 0:06:25.5]} 46... Re7 {[%clk 0:06:59.8]}
47. Re4 {[%clk 0:06:11.2]} 47... Kf5 {[%clk 0:07:02.3]} 48. Kf2 {[%clk
0:06:05.2]} 48... Rxe6 {[%clk 0:07:05.7]} 49. Rb4 {[%clk 0:06:04.7]} 49... Re7
{[%clk 0:07:01.7]} 50. b3 {[%clk 0:06:05.2]} 50... Re5 {[%clk 0:06:56.3]} 51. f4
{[%clk 0:05:57.6]} 51... Rxc5 {[%clk 0:06:58.5]} 52. Rxb7 {[%clk 0:06:00.4]}
52... Kxf4 {[%clk 0:07:00.7]} 53. Rb6 {[%clk 0:06:03.8]} 53... Rc2+ {[%clk
0:07:00.4]} 54. Ke1 {[%clk 0:06:06.4]} 54... h4 {[%clk 0:06:56.2]} 55. Rxa6
{[%clk 0:05:38.8]} 55... h3 {[%clk 0:06:56.7]} 56. Ra4+ {[%clk 0:05:35.8]} 56...
Kg3 {[%clk 0:06:59.9]} 57. b4 {[%clk 0:05:35.9]} 57... h2 {[%clk 0:07:00.1]} 58.
Ra3+ {[%clk 0:05:39.7]} 58... Kh4 {[%clk 0:07:04]} 59. Kd1 {[%clk 0:05:39.6]}
59... Rg2 {[%clk 0:07:08]} 60. Re3 {[%clk 0:05:36.3]} 60... h1=Q+ {[%clk
0:07:10.4]} 61. Re1 {[%clk 0:05:39.7]} 61... Rg1 {[%clk 0:07:14.9]} 62. Rxg1
{[%clk 0:05:42.5]} 62... Qxg1+ {[%clk 0:07:19.8]} 63. Kd2 {[%clk 0:05:46.4]}
63... Qd4+ {[%clk 0:07:23.3]} 64. Kc2 {[%clk 0:05:50.5]} 64... Qxb4 {[%clk
0:07:27]} 65. Kd3 {[%clk 0:05:50.3]} 65... Qc5 {[%clk 0:07:31.9]} 66. Ke4 {[%clk
0:05:54.4]} 66... Qd5+ {[%clk 0:07:36.8]} 67. Ke3 {[%clk 0:05:57.7]} 67... Qc4
{[%clk 0:07:36.5]} 68. Kf3 {[%clk 0:06:00.5]} 68... Kh5 {[%clk 0:07:37.3]} 69.
Kg3 {[%clk 0:06:02.5]} 69... Kg5 {[%clk 0:07:36.2]} 70. Kf3 {[%clk 0:06:05.9]}
70... Qd3+ {[%clk 0:07:39.8]} 71. Kf2 {[%clk 0:06:09.3]} 71... c5 {[%clk
0:07:43.8]} 72. Kg1 {[%clk 0:06:12.6]} 72... c4 {[%clk 0:07:48.7]} 73. Kf2
{[%clk 0:06:16.9]} 73... c3 {[%clk 0:07:53.6]} 74. Kg1 {[%clk 0:06:17.5]} 74...
c2 {[%clk 0:07:58.5]} 75. Kf2 {[%clk 0:06:21.9]} 75... Kf4 {[%clk 0:07:55.1]}
76. Kg2 {[%clk 0:06:25.4]} 76... Qg3+ {[%clk 0:07:58.7]} 77. Kf1 {[%clk
0:06:27.7]} 77... c1=Q+ {[%clk 0:08:03]} 78. Ke2 {[%clk 0:06:32.1]} 78... Qce3+
{[%clk 0:08:07.6]} 79. Kd1 {[%clk 0:06:35.1]} 79... Qge1+ {[%clk 0:08:12.5]} 80.
Kc2 {[%clk 0:06:39.3]} 80... Q3c3# {[%clk 0:08:17]} 0-1

[Event "Live Chess"]
[Site "Chess.com"]
[Date "2023.09.16"]
[Round "-"]
[White "Samueeeseeel"]
[Black "IanFLS"]
[Result "0-1"]
[WhiteElo "927"]
[BlackElo "1877"]
[TimeControl "900+5"]
[EndTime "7:54:22 PDT"]
[Termination "IanFLS venceu - partida abandonada"]

1. c4 {[%clk 0:14:59.9]} 1... c5 {[%clk 0:15:03.5]} 2. Nc3 {[%clk 0:15:03.7]}
2... Nc6 {[%clk 0:15:07.6]} 3. g3 {[%clk 0:15:07.6]} 3... g6 {[%clk 0:15:11.8]}
4. Bg2 {[%clk 0:15:11.6]} 4... Bg7 {[%clk 0:15:16.2]} 5. e4 {[%clk 0:15:14.6]}
5... e5 {[%clk 0:15:16.4]} 6. Nge2 {[%clk 0:15:18.8]} 6... Nge7 {[%clk
0:15:20.4]} 7. d3 {[%clk 0:15:22.8]} 7... d6 {[%clk 0:15:24.9]} 8. O-O {[%clk
0:15:26.7]} 8... O-O {[%clk 0:15:29.3]} 9. Be3 {[%clk 0:15:30.3]} 9... a6 {[%clk
0:15:33.5]} 10. b3 {[%clk 0:15:33.7]} 10... Be6 {[%clk 0:15:37.3]} 11. Rb1
{[%clk 0:15:36.8]} 11... Rb8 {[%clk 0:15:41.6]} 12. a3 {[%clk 0:15:40.5]} 12...
Qa5 {[%clk 0:15:39.7]} 13. Bc1 {[%clk 0:15:41]} 13... b5 {[%clk 0:15:32.1]} 14.
cxb5 {[%clk 0:15:42.7]} 14... axb5 {[%clk 0:15:37]} 15. Nd5 {[%clk 0:15:32.1]}
15... Bxd5 {[%clk 0:15:36]} 16. exd5 {[%clk 0:15:34.8]} 16... Nd4 {[%clk
0:15:37.6]} 17. Nxd4 {[%clk 0:15:38]} 17... exd4 {[%clk 0:15:42.1]} 18. Qd2
{[%clk 0:15:39.2]} 18... Qxd2 {[%clk 0:15:44.7]} 19. Bxd2 {[%clk 0:15:41.6]}
19... Nf5 {[%clk 0:15:43.7]} 20. b4 {[%clk 0:15:43.2]} 20... c4 {[%clk
0:15:40.7]} 21. dxc4 {[%clk 0:15:44.6]} 21... bxc4 {[%clk 0:15:45.6]} 22. b5
{[%clk 0:15:47]} 22... c3 {[%clk 0:15:46.9]} 23. Bf4 {[%clk 0:15:45.9]} 23...
Rfc8 {[%clk 0:15:46.6]} 24. Bxd6 {[%clk 0:15:45]} 24... Nxd6 {[%clk 0:15:50]}
25. b6 {[%clk 0:15:47.4]} 25... c2 {[%clk 0:15:51.8]} 26. Rbc1 {[%clk
0:15:42.8]} 26... Rxb6 {[%clk 0:15:53]} 27. a4 {[%clk 0:15:45.3]} 27... d3
{[%clk 0:15:55.1]} 28. a5 {[%clk 0:15:44.9]} 28... Ra6 {[%clk 0:15:56.7]} 29.
Be4 {[%clk 0:15:36]} 29... Nxe4 {[%clk 0:16:00]} 0-1

[Event "Live Chess"]
[Site "Chess.com"]
[Date "2023.09.16"]
[Round "-"]
[White "zezemito921"]
[Black "AlphaKaua10"]
[Result "0-1"]
[WhiteElo "911"]
[BlackElo "1096"]
[TimeControl "900+5"]
[EndTime "7:54:43 PDT"]
[Termination "AlphaKaua10 venceu - partida abandonada"]

1. e4 {[%clk 0:15:03.6]} 1... c5 {[%clk 0:15:03.9]} 2. Nf3 {[%clk 0:15:06.1]}
2... Nf6 {[%clk 0:15:07.6]} 3. d3 {[%clk 0:15:06.7]} 3... e6 {[%clk 0:15:10.7]}
4. Be2 {[%clk 0:15:09.4]} 4... Be7 {[%clk 0:15:14.1]} 5. O-O {[%clk 0:15:12.2]}
5... O-O {[%clk 0:15:18.6]} 6. Nc3 {[%clk 0:15:12.1]} 6... d5 {[%clk 0:15:22.1]}
7. Be3 {[%clk 0:14:50.2]} 7... d4 {[%clk 0:15:25.5]} 8. Bxd4 {[%clk 0:14:52.7]}
8... cxd4 {[%clk 0:15:29.9]} 9. Nxd4 {[%clk 0:14:56]} 9... Qxd4 {[%clk
0:15:33.8]} 10. Nb5 {[%clk 0:14:54.4]} 10... Qd7 {[%clk 0:15:36.1]} 11. c4
{[%clk 0:14:50]} 11... a6 {[%clk 0:15:39.1]} 0-1

[Event "Live Chess"]
[Site "Chess.com"]
[Date "2023.09.16"]
[Round "-"]
[White "MateusLuan08"]
[Black "Torugomilho11"]
[Result "1-0"]
[WhiteElo "1565"]
[BlackElo "1174"]
[TimeControl "900+5"]
[EndTime "7:55:27 PDT"]
[Termination "MateusLuan08 venceu por desistência"]

1. e4 {[%clk 0:14:45.9]} 1... e5 {[%clk 0:15:03.2]} 2. Nf3 {[%clk 0:14:50]} 2...
Nc6 {[%clk 0:15:06.9]} 3. d4 {[%clk 0:14:53.4]} 3... exd4 {[%clk 0:15:10.1]} 4.
Nxd4 {[%clk 0:14:58.3]} 4... Nxd4 {[%clk 0:15:14.4]} 5. Qxd4 {[%clk 0:15:03.2]}
5... d6 {[%clk 0:15:18.6]} 6. Nc3 {[%clk 0:15:06.5]} 6... Nf6 {[%clk 0:15:14.6]}
7. Bc4 {[%clk 0:15:09.1]} 7... c5 {[%clk 0:15:11.2]} 8. Qd3 {[%clk 0:15:10.7]}
8... Be7 {[%clk 0:15:08.7]} 9. O-O {[%clk 0:15:10.2]} 9... O-O {[%clk
0:15:07.6]} 10. Bg5 {[%clk 0:15:14.2]} 10... h6 {[%clk 0:15:10.7]} 11. Bh4
{[%clk 0:15:18.1]} 11... Re8 {[%clk 0:14:59.8]} 12. Rad1 {[%clk 0:15:17.9]}
12... Bd7 {[%clk 0:15:00]} 13. Bb5 {[%clk 0:15:13.3]} 13... Bxb5 {[%clk
0:14:58.8]} 14. Nxb5 {[%clk 0:15:13.2]} 14... Nxe4 {[%clk 0:14:28.3]} 15. Bxe7
{[%clk 0:15:14.3]} 15... Qxe7 {[%clk 0:14:30.3]} 16. Rfe1 {[%clk 0:15:13.8]}
16... Qh4 {[%clk 0:13:51.5]} 17. g3 {[%clk 0:15:11]} 17... Qe7 {[%clk
0:13:35.9]} 18. f3 {[%clk 0:15:08]} 18... d5 {[%clk 0:13:19.9]} 19. fxe4 {[%clk
0:15:09.9]} 19... dxe4 {[%clk 0:13:22.8]} 20. Rxe4 {[%clk 0:15:13.5]} 20... Qxe4
{[%clk 0:13:26.7]} 21. Qxe4 {[%clk 0:15:17.2]} 21... Rxe4 {[%clk 0:13:30.7]} 22.
Kf2 {[%clk 0:15:06.6]} 22... Rb4 {[%clk 0:13:26.1]} 23. Nc7 {[%clk 0:15:05.7]}
23... Rc8 {[%clk 0:13:21.5]} 24. Nd5 {[%clk 0:15:05.3]} 24... Rd4 {[%clk
0:13:16.7]} 25. Rxd4 {[%clk 0:15:02.4]} 25... cxd4 {[%clk 0:13:19]} 26. Ne7+
{[%clk 0:15:06.4]} 26... Kf8 {[%clk 0:13:20.5]} 27. Nxc8 {[%clk 0:15:11.2]}
27... a6 {[%clk 0:13:24.9]} 28. Nd6 {[%clk 0:15:10.3]} 28... Ke7 {[%clk
0:13:29]} 29. Nxb7 {[%clk 0:15:14.1]} 29... Kd7 {[%clk 0:13:32.6]} 30. Nc5+
{[%clk 0:15:18]} 1-0

[Event "Live Chess"]
[Site "Chess.com"]
[Date "2023.09.16"]
[Round "-"]
[White "Megruo988"]
[Black "NavarroChess09"]
[Result "1-0"]
[WhiteElo "1712"]
[BlackElo "1326"]
[TimeControl "900+5"]
[EndTime "7:55:47 PDT"]
[Termination "Megruo988 venceu por xeque-mate"]

1. e4 {[%clk 0:15:04.1]} 1... d6 {[%clk 0:14:51.3]} 2. d4 {[%clk 0:15:07.4]}
2... Nf6 {[%clk 0:14:50.9]} 3. Nc3 {[%clk 0:15:10.3]} 3... Nc6 {[%clk
0:14:49.9]} 4. Nf3 {[%clk 0:15:13.2]} 4... g6 {[%clk 0:14:53.6]} 5. Be3 {[%clk
0:15:16.3]} 5... Bg7 {[%clk 0:14:54.5]} 6. Bd3 {[%clk 0:15:20.7]} 6... O-O
{[%clk 0:14:55.1]} 7. h4 {[%clk 0:15:24.2]} 7... Ng4 {[%clk 0:14:57.3]} 8. Bd2
{[%clk 0:15:23.2]} 8... Nxd4 {[%clk 0:14:54.7]} 9. Nxd4 {[%clk 0:15:24.9]} 9...
Bxd4 {[%clk 0:14:59.6]} 10. Be3 {[%clk 0:15:15.6]} 10... Bxe3 {[%clk 0:14:50.5]}
11. fxe3 {[%clk 0:15:19.1]} 11... Nxe3 {[%clk 0:14:54.5]} 12. Qe2 {[%clk
0:15:21.4]} 12... Ng4 {[%clk 0:14:52.9]} 13. h5 {[%clk 0:15:22.3]} 13... c6
{[%clk 0:14:42.5]} 14. h6 {[%clk 0:15:24.4]} 14... Be6 {[%clk 0:14:39.5]} 15.
O-O-O {[%clk 0:15:27.1]} 15... d5 {[%clk 0:14:39.6]} 16. exd5 {[%clk 0:15:25.1]}
16... cxd5 {[%clk 0:14:42.6]} 17. Be4 {[%clk 0:15:10.5]} 17... Qb6 {[%clk
0:14:32.8]} 18. Nxd5 {[%clk 0:14:56.8]} 18... Bxd5 {[%clk 0:14:25.7]} 19. Bxd5
{[%clk 0:14:41.5]} 19... Nf2 {[%clk 0:14:24.6]} 20. Qe5 {[%clk 0:13:25.4]} 20...
Qf6 {[%clk 0:14:06.4]} 21. Qxf6 {[%clk 0:13:21]} 21... exf6 {[%clk 0:14:11.3]}
22. Rhf1 {[%clk 0:13:19.7]} 22... Nxd1 {[%clk 0:14:12.1]} 23. Kxd1 {[%clk
0:13:24.6]} 23... Rad8 {[%clk 0:14:13.7]} 24. c4 {[%clk 0:13:28.4]} 24... b5
{[%clk 0:14:14.7]} 25. b3 {[%clk 0:13:31.9]} 25... bxc4 {[%clk 0:14:17.9]} 26.
bxc4 {[%clk 0:13:35]} 26... Rfe8 {[%clk 0:14:18.2]} 27. Rxf6 {[%clk 0:13:37.3]}
27... Re4 {[%clk 0:14:19.6]} 28. Kc2 {[%clk 0:13:11.7]} 28... Re2+ {[%clk
0:14:08.1]} 29. Kb3 {[%clk 0:13:11.3]} 29... Rxd5 {[%clk 0:14:10.1]} 30. cxd5
{[%clk 0:13:12.9]} 30... Rxg2 {[%clk 0:14:11.8]} 31. Kc3 {[%clk 0:13:02.9]}
31... Rxa2 {[%clk 0:14:12.9]} 32. d6 {[%clk 0:13:07.1]} 32... Kf8 {[%clk
0:14:06.7]} 33. Kc4 {[%clk 0:12:53.4]} 33... Rd2 {[%clk 0:14:04]} 34. Kc5 {[%clk
0:12:56.5]} 34... a5 {[%clk 0:14:05.3]} 35. Kc6 {[%clk 0:12:55.2]} 35... a4
{[%clk 0:14:08]} 36. Kc7 {[%clk 0:12:58.4]} 36... a3 {[%clk 0:14:11.4]} 37. Rf3
{[%clk 0:12:50.8]} 37... a2 {[%clk 0:14:13.2]} 38. Ra3 {[%clk 0:12:53.9]} 38...
Rc2+ {[%clk 0:14:13.4]} 39. Kd7 {[%clk 0:12:53.6]} 39... Rd2 {[%clk 0:14:16.5]}
40. Ra8# {[%clk 0:12:56.3]} 1-0

[Event "Live Chess"]
[Site "Chess.com"]
[Date "2023.09.16"]
[Round "-"]
[White "kslusk"]
[Black "Abofado"]
[Result "1-0"]
[WhiteElo "863"]
[BlackElo "566"]
[TimeControl "900+5"]
[EndTime "7:56:25 PDT"]
[Termination "kslusk venceu por xeque-mate"]

1. e4 {[%clk 0:15:03.5]} 1... c6 {[%clk 0:15:04.6]} 2. d4 {[%clk 0:15:07]} 2...
d5 {[%clk 0:15:07.6]} 3. e5 {[%clk 0:15:11.3]} 3... f6 {[%clk 0:15:09.6]} 4.
exf6 {[%clk 0:15:14.2]} 4... exf6 {[%clk 0:15:14.5]} 5. Nc3 {[%clk 0:15:17.1]}
5... c5 {[%clk 0:15:17.1]} 6. Be3 {[%clk 0:15:17.9]} 6... cxd4 {[%clk
0:15:20.5]} 7. Bxd4 {[%clk 0:15:21.5]} 7... Nc6 {[%clk 0:15:20]} 8. Bb5 {[%clk
0:15:25.3]} 8... a6 {[%clk 0:15:22.3]} 9. Bxc6+ {[%clk 0:15:28.9]} 9... bxc6
{[%clk 0:15:23.7]} 10. Qe2+ {[%clk 0:15:33.3]} 10... Be7 {[%clk 0:15:21.7]} 11.
Bc5 {[%clk 0:15:28.6]} 11... h5 {[%clk 0:15:11.7]} 12. Bxe7 {[%clk 0:15:31.4]}
12... Nxe7 {[%clk 0:15:11.6]} 13. Nf3 {[%clk 0:15:21.1]} 13... Qb6 {[%clk
0:15:10.3]} 14. O-O {[%clk 0:15:04.2]} 14... Qc7 {[%clk 0:15:09.5]} 15. Rfe1
{[%clk 0:15:02.1]} 15... h4 {[%clk 0:15:09.9]} 16. Nd4 {[%clk 0:15:00.9]} 16...
h3 {[%clk 0:15:11.2]} 17. Nxc6 {[%clk 0:15:02.2]} 17... hxg2 {[%clk 0:15:10.5]}
18. f4 {[%clk 0:14:28.3]} 18... Qxf4 {[%clk 0:15:01.7]} 19. Qxe7# {[%clk
0:14:30.3]} 1-0

[Event "Live Chess"]
[Site "Chess.com"]
[Date "2023.09.16"]
[Round "-"]
[White "Edson_Zarnelli"]
[Black "Ggavioli"]
[Result "0-1"]
[WhiteElo "788"]
[BlackElo "1555"]
[TimeControl "900+5"]
[EndTime "7:56:45 PDT"]
[Termination "Ggavioli venceu por xeque-mate"]

1. e4 {[%clk 0:15:04.3]} 1... Nc6 {[%clk 0:14:58.8]} 2. d4 {[%clk 0:15:06]} 2...
d5 {[%clk 0:15:03.1]} 3. exd5 {[%clk 0:15:08.5]} 3... Qxd5 {[%clk 0:15:08]} 4.
Nc3 {[%clk 0:15:11.5]} 4... Qxd4 {[%clk 0:15:11.4]} 5. Qxd4 {[%clk 0:15:14.5]}
5... Nxd4 {[%clk 0:15:16.3]} 6. Bd3 {[%clk 0:15:14.5]} 6... Nf6 {[%clk
0:15:17.7]} 7. Nge2 {[%clk 0:15:13.8]} 7... Nxe2 {[%clk 0:15:20.3]} 8. Bxe2
{[%clk 0:15:17.4]} 8... Bf5 {[%clk 0:15:23.5]} 9. Bd3 {[%clk 0:15:16.1]} 9...
Bxd3 {[%clk 0:15:27.1]} 10. cxd3 {[%clk 0:15:19.9]} 10... O-O-O {[%clk 0:15:31]}
11. Bg5 {[%clk 0:15:15.7]} 11... h6 {[%clk 0:15:34.4]} 12. Bxf6 {[%clk
0:15:19.3]} 12... exf6 {[%clk 0:15:39.3]} 13. Rd1 {[%clk 0:15:22.5]} 13... Bb4
{[%clk 0:15:43.8]} 14. O-O {[%clk 0:15:23.4]} 14... Bxc3 {[%clk 0:15:47.7]} 15.
bxc3 {[%clk 0:15:26.7]} 15... Rd6 {[%clk 0:15:52.4]} 16. d4 {[%clk 0:15:29.8]}
16... Rhd8 {[%clk 0:15:56.5]} 17. Rd2 {[%clk 0:15:31.3]} 17... c5 {[%clk
0:15:57.7]} 18. d5 {[%clk 0:15:31.5]} 18... Rxd5 {[%clk 0:16:01.6]} 19. Rxd5
{[%clk 0:15:35.5]} 19... Rxd5 {[%clk 0:16:06.5]} 20. Re1 {[%clk 0:15:38.7]}
20... Kd7 {[%clk 0:16:08.3]} 21. c4 {[%clk 0:15:40.5]} 21... Rd4 {[%clk
0:16:12.6]} 22. Rc1 {[%clk 0:15:42.3]} 22... Rd2 {[%clk 0:16:13.4]} 23. f4
{[%clk 0:15:44.1]} 23... Rxa2 {[%clk 0:16:17.4]} 24. Rd1+ {[%clk 0:15:45.3]}
24... Kc7 {[%clk 0:16:21.1]} 25. f5 {[%clk 0:15:47.6]} 25... Ra4 {[%clk
0:16:24.9]} 26. Rc1 {[%clk 0:15:50.8]} 26... Kc6 {[%clk 0:16:27.8]} 27. g4
{[%clk 0:15:51.6]} 27... b5 {[%clk 0:16:30.9]} 28. cxb5+ {[%clk 0:15:54.1]}
28... Kxb5 {[%clk 0:16:35.6]} 29. Kf2 {[%clk 0:15:56.9]} 29... Rxg4 {[%clk
0:16:39]} 30. Kf3 {[%clk 0:15:59.5]} 30... Rg5 {[%clk 0:16:42.9]} 31. Kf4 {[%clk
0:16:03.1]} 31... Rg2 {[%clk 0:16:46.5]} 32. h4 {[%clk 0:16:05.5]} 32... g5+
{[%clk 0:16:49.5]} 33. hxg5 {[%clk 0:16:09.1]} 33... hxg5+ {[%clk 0:16:51.7]}
34. Ke4 {[%clk 0:16:12.7]} 34... Rg4+ {[%clk 0:16:55.4]} 35. Kd5 {[%clk
0:16:16.6]} 35... Rd4# {[%clk 0:16:57.8]} 0-1

[Event "Live Chess"]
[Site "Chess.com"]
[Date "2023.09.16"]
[Round "-"]
[White "z_anne_ari"]
[Black "ABC2009V"]
[Result "0-1"]
[WhiteElo "1258"]
[BlackElo "2005"]
[TimeControl "900+5"]
[EndTime "7:58:10 PDT"]
[Termination "ABC2009V venceu por desistência"]

1. d4 {[%clk 0:15:01.6]} 1... Nf6 {[%clk 0:15:03.4]} 2. e3 {[%clk 0:15:03.5]}
2... g6 {[%clk 0:15:07.9]} 3. Bd3 {[%clk 0:15:07.7]} 3... d5 {[%clk 0:15:12.6]}
4. Nd2 {[%clk 0:15:11.8]} 4... Bg7 {[%clk 0:15:17.1]} 5. f4 {[%clk 0:15:15.9]}
5... c5 {[%clk 0:15:20.4]} 6. c3 {[%clk 0:15:19.1]} 6... cxd4 {[%clk 0:15:24.5]}
7. cxd4 {[%clk 0:15:23]} 7... O-O {[%clk 0:15:29.4]} 8. Ngf3 {[%clk 0:15:26.8]}
8... Nbd7 {[%clk 0:15:34]} 9. O-O {[%clk 0:15:29]} 9... b6 {[%clk 0:15:38.4]}
10. Qe1 {[%clk 0:15:12.8]} 10... Bb7 {[%clk 0:15:39.5]} 11. Qh4 {[%clk
0:15:15.8]} 11... h6 {[%clk 0:15:33.7]} 12. f5 {[%clk 0:15:17.7]} 12... g5
{[%clk 0:15:32.8]} 13. Qf2 {[%clk 0:15:04]} 13... Ng4 {[%clk 0:15:32]} 14. Qe2
{[%clk 0:15:01.4]} 14... Nb8 {[%clk 0:15:15.1]} 15. Nxg5 {[%clk 0:14:57]} 15...
hxg5 {[%clk 0:15:03.4]} 16. Qxg4 {[%clk 0:14:59.7]} 16... f6 {[%clk 0:15:07.8]}
17. e4 {[%clk 0:14:54.5]} 17... dxe4 {[%clk 0:15:05.3]} 18. Nxe4 {[%clk
0:14:58.9]} 18... Qxd4+ {[%clk 0:15:04.2]} 19. Nf2 {[%clk 0:14:53.9]} 19... Qxg4
{[%clk 0:14:53.5]} 20. Nxg4 {[%clk 0:14:57]} 20... Nd7 {[%clk 0:14:55.8]} 21.
Bc4+ {[%clk 0:14:59.6]} 21... Kh8 {[%clk 0:14:58.1]} 22. Rf3 {[%clk 0:15:03.3]}
22... Bxf3 {[%clk 0:14:54.8]} 23. gxf3 {[%clk 0:15:06.2]} 23... Ne5 {[%clk
0:14:57.8]} 24. Nxe5 {[%clk 0:15:06.1]} 24... fxe5 {[%clk 0:15:01.9]} 25. Bxg5
{[%clk 0:15:04.9]} 25... Rxf5 {[%clk 0:14:55.4]} 26. Bxe7 {[%clk 0:15:07.5]}
26... Re8 {[%clk 0:14:32.1]} 27. Bb4 {[%clk 0:14:42.1]} 27... Rf4 {[%clk
0:14:21.6]} 28. Bb5 {[%clk 0:14:37.8]} 28... Rg8 {[%clk 0:14:12.4]} 29. Bd2
{[%clk 0:14:28.5]} 29... Bf8+ {[%clk 0:14:02.1]} 30. Kf2 {[%clk 0:14:28.5]}
30... Bc5+ {[%clk 0:14:01.3]} 31. Be3 {[%clk 0:14:27.9]} 31... Rgf8 {[%clk
0:13:57.4]} 32. Be2 {[%clk 0:14:26.9]} 32... e4 {[%clk 0:13:52.8]} 33. Bxc5
{[%clk 0:14:18.5]} 33... bxc5 {[%clk 0:13:53.3]} 34. Kg3 {[%clk 0:14:09.5]}
34... exf3 {[%clk 0:13:47.8]} 35. Bd3 {[%clk 0:13:58.7]} 35... f2 {[%clk
0:13:43.7]} 36. Rf1 {[%clk 0:14:01.2]} 36... Rf3+ {[%clk 0:13:46.1]} 37. Kg2
{[%clk 0:14:00]} 37... Rxd3 {[%clk 0:13:50.4]} 38. Rxf2 {[%clk 0:14:03.4]} 38...
Rxf2+ {[%clk 0:13:55.3]} 39. Kxf2 {[%clk 0:14:07.6]} 39... Rd2+ {[%clk
0:14:00.2]} 40. Kg3 {[%clk 0:14:10.4]} 40... Rxb2 {[%clk 0:14:04.9]} 41. h4
{[%clk 0:14:14.7]} 41... c4 {[%clk 0:14:09.8]} 42. Kg4 {[%clk 0:14:14.8]} 42...
c3 {[%clk 0:14:14.7]} 0-1

[Event "Live Chess"]
[Site "Chess.com"]
[Date "2023.09.16"]
[Round "-"]
[White "P3treis"]
[Black "lucasbezerraja"]
[Result "0-1"]
[WhiteElo "919"]
[BlackElo "1791"]
[TimeControl "900+5"]
[EndTime "7:58:38 PDT"]
[Termination "lucasbezerraja venceu por xeque-mate"]

1. e4 {[%clk 0:15:02.9]} 1... c5 {[%clk 0:15:04.2]} 2. Nf3 {[%clk 0:15:06.5]}
2... d6 {[%clk 0:15:08.8]} 3. d4 {[%clk 0:15:10.4]} 3... cxd4 {[%clk 0:15:13.7]}
4. Nxd4 {[%clk 0:15:14.7]} 4... Nf6 {[%clk 0:15:18]} 5. Nc3 {[%clk 0:15:19.3]}
5... g6 {[%clk 0:15:22.1]} 6. Be3 {[%clk 0:15:21.2]} 6... Bg7 {[%clk 0:15:25.8]}
7. f3 {[%clk 0:15:24.3]} 7... O-O {[%clk 0:15:29.3]} 8. Qd2 {[%clk 0:15:27.8]}
8... Nc6 {[%clk 0:15:33.7]} 9. Bc4 {[%clk 0:15:27.6]} 9... Bd7 {[%clk
0:15:35.2]} 10. O-O-O {[%clk 0:15:29]} 10... Rc8 {[%clk 0:15:20.6]} 11. b3
{[%clk 0:14:37.9]} 11... Na5 {[%clk 0:15:02.6]} 12. Bb5 {[%clk 0:13:25.6]} 12...
a6 {[%clk 0:14:35.6]} 13. Bxd7 {[%clk 0:13:28.4]} 13... Nxd7 {[%clk 0:14:36.5]}
14. Nde2 {[%clk 0:11:33.5]} 14... e6 {[%clk 0:12:34.9]} 15. f4 {[%clk 0:10:20]}
15... Nc5 {[%clk 0:11:45.6]} 16. Bxc5 {[%clk 0:10:02.3]} 16... Rxc5 {[%clk
0:11:28.2]} 17. Qd3 {[%clk 0:08:39.9]} 17... Rc6 {[%clk 0:10:38.6]} 18. h4
{[%clk 0:07:32.5]} 18... Qc7 {[%clk 0:10:25.1]} 19. Kb2 {[%clk 0:07:18.6]} 19...
Rc8 {[%clk 0:10:25.1]} 20. Rh3 {[%clk 0:07:00]} 20... b5 {[%clk 0:10:04.5]} 21.
a3 {[%clk 0:06:38.8]} 21... Nb7 {[%clk 0:09:27.5]} 22. Nd4 {[%clk 0:06:09.8]}
22... Bxd4 {[%clk 0:08:53.8]} 23. Qxd4 {[%clk 0:06:11.1]} 23... e5 {[%clk
0:08:54.4]} 24. fxe5 {[%clk 0:05:06.2]} 24... dxe5 {[%clk 0:08:57.8]} 25. Qe3
{[%clk 0:03:55.9]} 25... Nc5 {[%clk 0:08:29]} 26. Nd5 {[%clk 0:03:45.2]} 26...
Na4+ {[%clk 0:08:27.3]} 27. bxa4 {[%clk 0:03:46]} 27... Rxc2+ {[%clk 0:08:31]}
28. Kb1 {[%clk 0:03:46.2]} 28... Rb2+ {[%clk 0:08:28.3]} 29. Kxb2 {[%clk
0:03:14.7]} 29... Qc2+ {[%clk 0:08:32]} 30. Ka1 {[%clk 0:03:18.1]} 30... Qxd1+
{[%clk 0:08:31.4]} 31. Kb2 {[%clk 0:03:16.2]} 31... Rc2+ {[%clk 0:08:22.5]} 32.
Kb3 {[%clk 0:03:14]} 32... Qb1# {[%clk 0:08:09.7]} 0-1